Cogmind - Beta 13 @@@ ROGUE MODE // 2024.06.23 @ 06:37:45 Player: tsintsir Result: Destroyed by H-55 Commando with Gauss Rifle Performance ------------- Evolutions (2) 1000 Regions Visited (3) 600 Robots Destroyed (26) 130 Value Destroyed (635) 635 Prototype IDs (0) 0 Alien Tech Used (0) 0 Bonus (0) 0 TOTAL SCORE: 2365 Bonus ------- None Cogmind --------- Core Integrity 0/550 Matter 95/300 Energy 52/100 System Corruption 0% Temperature Cool (51) Movement Walking (120) Location -8/Materials Parts ------- > --- POWER (1) -------- (None) > --- PROPULSION (4) --- Aluminum Leg > --- UTILITY (3) ------ Machine Analyzer > --- WEAPON (3) ------- Particle Gun Particle Gun > --- INVENTORY (5) ---- Authchip [Device] Peak State ------------ > --- POWER ------------ Nuclear Core > --- PROPULSION ------- Aluminum Leg Aluminum Leg Improved Aluminum Leg Improved Aluminum Leg > --- UTILITY ---------- Improved Heat Sink Machine Analyzer Hacking Suite > --- WEAPON ----------- Heavy Particle Cannon Heavy Particle Cannon Heavy Particle Cannon > --- INVENTORY -------- Nuclear Core Aluminum Leg Shield Generator Authchip [Device] Heavy Particle Cannon [Rating: 28] Favorites ----------- Power Nuclear Core Engine Ion Engine Power Core Nuclear Core Propulsion Aluminum Leg Leg Aluminum Leg Utility Improved Heat Sink Device Improved Heat Sink Storage Small Storage Unit Processor Machine Analyzer Hackware Hacking Suite Weapon Heavy Particle Cannon Energy Gun Particle Gun Energy Cannon Heavy Particle Cannon Ballistic Gun Light Assault Rifle Build | -11 -10 -9 -8 ------- Run | Yrd Mat Mat Mat Slots Evolved 4 | . . 2 2 Power . | . . . . Propulsion 2 | . . 1 1 Utility 1 | . . 1 . Weapon 1 | . . . 1 Parts Attached 30 | 6 6 6 12 Power 4 | 1 1 1 1 Engine 2 | 1 1 . . Core 2 | . . 1 1 Reactor . | . . . . Propulsion 8 | 2 1 1 4 Treads . | . . . . Leg 8 | 2 1 1 4 Wheel . | . . . . Hover . | . . . . Flight . | . . . . Utility 7 | 1 2 2 2 Device 4 | . 2 . 2 Storage 1 | 1 . . . Processor 1 | . . 1 . Hackware 1 | . . 1 . Protection . | . . . . Artifact . | . . . . Weapon 11 | 2 2 2 5 Energy Gun 2 | . . . 2 Energy Cannon 6 | . 2 2 2 Ballistic Gun 3 | 2 . . 1 Ballistic Cannon . | . . . . Launcher . | . . . . Special Weapon . | . . . . Impact Weapon . | . . . . Slashing Weapon . | . . . . Piercing Weapon . | . . . . Special Melee Weapon . | . . . . Unidentified Prototypes . | . . . . Parts Lost 17 | . 1 . 16 Power 2 | . . . 2 Propulsion 6 | . 1 . 5 Utility 4 | . . . 4 Weapon 5 | . . . 5 Highest Loss Streak 16 | . 1 . 16 To Critical Strikes . | . . . . Average Slot Usage (%) 95 | . 98 99 80 Engine 5 | . 13 1 . Core 6 | . . 9 7 Leg 29 | . 28 32 24 Device 11 | . 13 11 7 Storage 4 | . 14 . . Processor 6 | . . 11 9 Hackware 6 | . . 10 7 Energy Cannon 19 | . 14 21 22 Ballistic Gun 4 | . 12 . . Naked Turns . | . . . . Heaviest Build 27 | 13 19 20 27 Greatest Support 46 | 20 20 30 46 Greatest Overweight (x) 1 | 1 . . 1 Average Overweight (x) . | . . . . Largest Inventory Capacity 8 | 8 8 8 5 Average Capacity 6 | 7 8 5 5 Most Carried 7 | 4 7 7 5 Average Carried 4 | 1 4 5 3 Final Capacity 8 | 8 8 5 5 Final Carried 7 | 1 7 5 1 Class Distribution -------------------- 48% | Scavenger-Mutant 36% | Mutant 14% | Scavenger-Skirmisher Dominant Class ---------------- Mutant | -10/Materials Scavenger-Mutant | -9/Materials Scavenger-Skirmisher | -8/Materials Resources | -11 -10 -9 -8 ----------- Run | Yrd Mat Mat Mat Matter Collected 577 | 204 204 34 135 Remotely 164 | . 164 . . Salvage Created 819 | . 347 119 353 Parts 66 | . 30 11 25 Haulers Intercepted 2 | . 2 . . Recyclers Shooed 1 | . 1 . . Parts Field Recycled . | . . . . Retrieved Matter . | . . . . Parts Self-Destructed . | . . . . Prevented . | . . . . Kills | -11 -10 -9 -8 ------- Run | Yrd Mat Mat Mat Combat Hostiles Destroyed 20 | . 7 4 9 Guns 7 | . 6 . 1 Cannons 13 | . 1 4 8 Classes Destroyed 7 | . 6 1 . Hauler 2 | . 2 . . Mechanic 1 | . 1 . . Operator 2 | . 1 1 . Watcher 1 | . 1 . . Swarmer 9 | . 3 3 3 Grunt 7 | . 4 . 3 Sentry 4 | . . 1 3 Best Kill Streak 5 | . 4 3 5 Combat Bots Only 5 | . 3 3 5 Max Kills in Single Turn 2 | . 2 1 1 Gunslinging . | . . . . Exploded . | . . . . Melee . | . . . . Uniques/NPCs Destroyed . | . . . . Combat | -11 -10 -9 -8 -------- Run | Yrd Mat Mat Mat Hostile Shots Fired 194 | . 28 22 144 Missed 44 | . 10 8 26 Damage Taken 1963 | . 238 145 1580 Core 609 | . 44 7 558 Absorbed by Shields 31 | . . . 31 Regen/Repaired (Parts) 21 | . 21 . . Core Remaining (%) 93 | 100 82 98 . Volleys Fired 66 | . 30 12 24 Largest 3 | . 2 2 3 Hottest 225 | . 136 150 225 Shots Fired 128 | . 60 24 44 Gun 57 | . 44 . 13 Cannon 71 | . 16 24 31 Launcher . | . . . . Special . | . . . . Kinetic 51 | . 44 . 7 Thermal 77 | . 16 24 37 Explosive . | . . . . Electromagnetic . | . . . . Robot Hit Streak 13 | . 7 4 13 Robot Miss Streak 5 | . 5 2 3 Penetration Max . | . . . . Secondary Targets 1 | . 1 . . Max Gunslinging Chain 1 | . 1 . . Shots Hit Robots 75 | . 36 12 27 Core Hits 39 | . 17 5 17 Critical Kills . | . . . . Critical Parts Destroyed . | . . . . Critical Strikes 1 | . . . 1 Burn 1 | . . . 1 Melee Attacks . | . . . . Impact . | . . . . Slashing . | . . . . Piercing . | . . . . Sneak Attacks . | . . . . Combat Hostiles . | . . . . Follow-up Attacks . | . . . . Damage Inflicted 1461 | . 526 291 644 Guns 515 | . 321 . 194 Cannons 946 | . 205 291 450 Explosions . | . . . . Melee . | . . . . Ramming . | . . . . Kinetic 422 | . 321 . 101 Thermal 1039 | . 205 291 543 Explosive . | . . . . Electromagnetic . | . . . . Impact . | . . . . Slashing . | . . . . Piercing . | . . . . Highest Corruption . | . . . . Average Corruption . | . . . . Corruption Purged . | . . . . Corruption Blocked . | . . . . Overload Shots . | . . . . Overflow Damage 10 | . . 5 5 Projectiles 10 | . . 5 5 Explosions . | . . . . Melee . | . . . . Knockbacks . | . . . . Impact . | . . . . Kinetic . | . . . . Secondary . | . . . . Self-Inflicted Damage . | . . . . Shots . | . . . . Rammed . | . . . . Targets Rammed . | . . . . Kicked . | . . . . Crushed . | . . . . Highest Temperature 740 | . 99 225 740 Average Temperature 204 | . 32 69 352 Received Heat Transfer 822 | . 132 18 672 Effects 34 | . . . 34 Shutdowns 4 | . . . 4 Energy Bleed 2 | . . . 2 Interference 2 | . . . 2 Matter Decay 5 | . . . 5 Short Circuit 2 | . . . 2 Damage (minor) 4 | . . . 4 Damage (major) 15 | . . . 15 Siege Activations . | . . . . Robots Corrupted . | . . . . Combat Hostiles . | . . . . Parts Fried . | . . . . Impact Corruptions . | . . . . Robots Melted . | . . . . Combat Hostiles . | . . . . Parts Melted 2 | . . . 2 Heat Transferred 1776 | . 370 444 962 Parts Sabotaged . | . . . . Parts Stolen . | . . . . Parts Stripped . | . . . . Power Chain Reactions . | . . . . Alert | -11 -10 -9 -8 ------- Run | Yrd Mat Mat Mat Peak Influence 195 | . 171 168 195 Initial 12 | . . 12 5 Average 65 | . 91 58 52 Maximum Alert Level . | . . . . Low Security (%) 100 | 100 100 100 100 Level 1 . | . . . . Level 2 . | . . . . Level 3 . | . . . . Level 4 . | . . . . Level 5 . | . . . . High Security . | . . . . Max Security . | . . . . Squads Dispatched 7 | . 2 2 3 Investigation 1 | . 1 . . Extermination . | . . . . Reinforcement 6 | . 1 2 3 Assault . | . . . . Garrison . | . . . . Intercept . | . . . . Searches Triggered . | . . . . Construction Impeded . | . . . . Haulers Reinforced . | . . . . Active Scanning Responses . | . . . . Cargo Convoy Interrupts . | . . . . Stealth | -11 -10 -9 -8 --------- Run | Yrd Mat Mat Mat Distress Signals 6 | . 1 . 5 Communications Jammed . | . . . . Distress Signals . | . . . . Times Spotted 44 | . 10 7 27 Peak Tracking Total 11 | . 3 3 11 Tactical Retreats . | . . . . Traps | -11 -10 -9 -8 ------- Run | Yrd Mat Mat Mat Traps Triggered 1 | . 1 . . Indirectly . | . . . . Trap Hack Attempts . | . . . . Triggered . | . . . . Disarmed . | . . . . Reprogrammed . | . . . . Reused . | . . . . Traps Extracted . | . . . . Installed . | . . . . Triggered . | . . . . Machines | -11 -10 -9 -8 ---------- Run | Yrd Mat Mat Mat Machines Disabled 1 | . . 1 . Max in Single Turn 1 | . . 1 . Machines Repaired . | . . . . Machines Dismantled . | . . . . Machines Sabotaged . | . . . . Overloaded Fab Kills . | . . . . Hacking | -11 -10 -9 -8 --------- Run | Yrd Mat Mat Mat Machines Accessed 8 | . 3 3 2 Terminals 5 | . 2 2 1 Fabricators . | . . . . Repair Stations 1 | . 1 . . Recycling Units 1 | . . . 1 Scanalyzers 1 | . . 1 . Garrison Access . | . . . . Total Hacks 15 | . 5 7 3 Successful 11 | . 5 4 2 Failed 4 | . . 3 1 Catastrophic . | . . . . Database Lockouts . | . . . . Manual . | . . . . Terminals 10 | . 3 5 2 Fabricators . | . . . . Repair Stations 2 | . 2 . . Recycling Units 1 | . . . 1 Scanalyzers 2 | . . 2 . Garrison Access . | . . . . Terminal Hacks 6 | . 3 2 1 Record 1 | . . . 1 Transport Status 1 | . 1 . . Registered Components 1 | . . 1 . Zone Layout 3 | . 2 1 . Fabricator Hacks . | . . . . Repair Station Hacks 2 | . 2 . . Scan Component 1 | . 1 . . Repair 1 | . 1 . . Recycling Unit Hacks 1 | . . . 1 Report Inventory 1 | . . . 1 Scanalyzer 2 | . . 2 . Insert Component 2 | . . 2 . Garrison Access Hacks . | . . . . Unauthorized Hacks . | . . . . Terminals . | . . . . Fabricators . | . . . . Repair Stations . | . . . . Recycling Units . | . . . . Scanalyzers . | . . . . Garrison Access . | . . . . Data Cores Recovered 1 | . . 1 . Used 1 | . . 1 . Hacking Detections 3 | . . 2 1 Full Trace Events . | . . . . Feedback Events . | . . . . Feedback Blocked . | . . . . Robot Schematics Acquired . | . . . . Robots Built . | . . . . Authchips . | . . . . Time . | . . . . Total Robot Build Rating . | . . . . Part Schematics Acquired . | . . . . Parts Built . | . . . . Authchips . | . . . . Time . | . . . . Total Part Build Rating . | . . . . Parts Repaired 1 | . 1 . . Time 26 | . 26 . . Parts Recycled . | . . . . Recycled Matter . | . . . . Retrieved Matter . | . . . . Retrieved Components . | . . . . Parts Scanalyzed . | . . . . Part Schematics Acquired . | . . . . Parts Damaged . | . . . . Bothacking | -11 -10 -9 -8 ------------ Run | Yrd Mat Mat Mat Used RIF Installer . | . . . . Robots Hacked . | . . . . Non-combat . | . . . . Combat . | . . . . Robot Hacks Applied . | . . . . Relay Couplers Released . | . . . . Fabnet Peak Effective % . | . . . . Robots Rewired . | . . . . Allies Hacked . | . . . . Hacks Repelled . | . . . . Allies | -11 -10 -9 -8 -------- Run | Yrd Mat Mat Mat Total Allies . | . . . . Largest Group . | . . . . Highest-Rated Group . | . . . . Highest-Rated Ally . | . . . . Total Orders . | . . . . Ally Attacks . | . . . . Total Damage . | . . . . Kills . | . . . . Allies Corrupted . | . . . . Allies Melted . | . . . . Intel | -11 -10 -9 -8 ------- Run | Yrd Mat Mat Mat Robot Analysis Total . | . . . . Derelict Logs Recovered . | . . . . Drone Launches . | . . . . Drone Recoveries . | . . . . Exploration | -11 -10 -9 -8 ------------- Run | Yrd Mat Mat Mat Turns Passed 1498 | 57 476 672 293 Spaces Moved 760 | 40 268 271 181 Core 26 | 9 . . 17 Treads . | . . . . Legs 734 | 31 268 271 164 Wheels . | . . . . Hover . | . . . . Flight . | . . . . Fastest Speed 50 | 50 120 120 50 Average Speed 118 | 113 120 120 115 Slowest Speed 190 | 190 120 120 190 Overloaded Moves . | . . . . Propulsion Burnouts . | . . . . Robots Hopped . | . . . . Cave-ins Triggered . | . . . . Exploration Rate (%) 23 | 5 43 23 21 Regions Visited 3 Branch Regions . Pre-discovered Areas . | . . . . Known Exits Taken . | . . . . Unknown Exits Taken 3 | 1 1 1 . Scrap Searched . | . . . . Spaces Dug . | . . . . Terrain Destroyed 17 | . . 5 12 Melee . | . . . . Projectile 17 | . . 5 12 AOE . | . . . . Terrain Rammed . | . . . . Walls Destroyed . | . . . . Machines Disabled . | . . . . Actions | -11 -10 -9 -8 --------- Run | Yrd Mat Mat Mat Total 1249 | 52 370 598 229 Wait 345 | . 49 291 5 Move 757 | 39 267 270 181 Hop . | . . . . Pick Up 34 | 7 12 9 6 Fast Attach 2 | . . 1 1 Attach 28 | 6 6 5 11 Detach 5 | . 3 1 1 Swap . | . . . . Drop 12 | . 3 9 . Fire 66 | . 30 12 24 Melee . | . . . . Ram . | . . . . Kick . | . . . . Crush . | . . . . Escape Stasis . | . . . . Rewire . | . . . . Trap . | . . . . Miscellaneous . | . . . . Route ------- -11/Scrapyard -10/Materials -9/Materials -8/Materials History --------- Turn | Location | Event 14 | -11/Scrapyard | Discovered new exit (range 16) 58 | -11/Scrapyard | Entered Materials 304 | -10/Materials | Build established: Mutant 326 | -10/Materials | Repaired Ion Engine 437 | -10/Materials | Discovered new exit (range 10) 534 | -10/Materials | Entered another Materials area 534 | -9/Materials | Evolved 2 slots: Propulsion x1, Utility x1 831 | -9/Materials | Build established: Scavenger-Mutant 1184 | -9/Materials | Discovered new exit (range 11) 1206 | -9/Materials | Entered another Materials area 1206 | -8/Materials | Evolved 2 slots: Propulsion x1, Weapon x1 1464 | -8/Materials | Core integrity fell below 50% 1488 | -8/Materials | Core integrity fell below 20% 1499 | -8/Materials | Destroyed by H-55 Commando with Gauss Rifle Last Messages --------------- Hvy. Assault Rifle destroyed. U-05 Engineer builds a Wall. Heat Sink destroyed. K-01 Serf collects debris. G-47 Trooper suffers critical hit (Burn). Penetrated by Slug. G-47 Trooper overheating. K-01 Serf collects debris. Penetrated by Slug. Slug penetrates Wall. G-47 Trooper destroyed. Acquired Aluminum Leg. K-01 Serf collects debris. Slug penetrates Wall. Acquired Particle Gun. W-25 Informer sends out distress signal. R-06 Scavenger collects Lgt. Treads. K-01 Serf collects debris. Penetrated by Slug. R-06 Scavenger collects Heat Sink. Map ----- +----------------------------------------------------+ | #?# ?????????# #????????????????????? | | #?# #?????????# #????????????????????? | | #?# #?????????# #????????????????????? | | #?? ??????????# +???????????"""??????? | | #?? ??????????# #???????????"""??????? | | #?? ??????????# #???????????"""??????? | | ??????????# #????????????????????? | | #########?????????# #????????????????????? | | ??????????????????####"/########?????????????????? | | ?????????##### ????# #!= #??????????????? | | ?????? ###==[######??????????????????? | | ?????? [%===#???????????????????????? | | ?????? ###%%*#???????????????????????? | | ?????????# ### ??????# #???????????????????????? | | ?????????????????????# #???????????????????????? | | ?????"""?????????????# ########????????????????? | | ?????"T"?????????????# #????????????????? | | ?????????????????????# #????????????????? | | ?????????????????????# #????????????????? | | ?????????????????????######## #????????????????? | | ????"""??????????????##?????# #????????????????? | | ????"""???????????#### ###### #????????????????? | | ????"""???????????# ## ##???????????????? | | ??????????????????# """ g# ####### #?????? | | ??????????????????# """ bg# r [*= | | ??????????????????# "" @gg hw=%% | | ??????????????????# kh#g !*== k | | ??????????????????# """ # ! k########+##### ? | | ??????????????????# R" ## ##???????????????? | | ??????????????????# """ ## #????????????????? | | ??????????????????# ## #????????????????? | | ??????????????????########### #????????????????? | | ???????????????????????????? #????????????????? | | ??????????????????????????? +????????????????? | | ?????????????????????????? #????????????????? | | ?????????????????????????? #????????????????? | | ????????????????????????? !!!#????????????????? | | ?????????????????????????? ![ #????????????????? | | ???????????????????????????? !! #????????????????? | | ???????????????????????????? #????????????????? | | ?????????????????????????????????????????????????? | | ?????????????????????????????????????????????????? | | ?????????????????????????????????????????????????? | | ?????????????????????????????????????????????????? | | ?????????????????????????????????????????????????? | | ?????????????????????????????????????????????????? | | ?????????????????????????????????????????????????? | | ?????????????????????????????????????????????????? | | ?????????????????????????????????????????????????? | | ?????????????????????????????????????????????????? | +----------------------------------------------------+ Best States ------------- Heat Dissipation 45 Energy Generation 14 Energy Capacity 250 Matter Stores 300 Matter Capacity 300 Sight Range 16 Terrain Scan Density 10 Evasion (%) 55 Offensive Hacking 10 Authchip Count 1 Item Schematics ----------------- None Robot Schematics ------------------ None Fabricated ------------ Nothing Alien Tech Used ----------------- None Achievements -------------- None Challenges ------------ None Game ------ Seed ProtonAssembledDatajack Manual? 0 Play Time 00:27:13 Cumulative 5.7 hours Start 2024.06.23 @ 06:12:14 End 2024.06.23 @ 06:37:45 Sessions 1 Manual Loads 0 Difficulty Rogue Special Mode None Game No. 10 Rogue 10 Adventurer 0 Explorer 0 Win Type - Total 0 Types 0/0/0/0/0/0/0/0/0 Lore% 8 Gallery% 12 Achievement% 13 Wizard Run 0 Options --------- Layout 1 ASCII 0 Keyboard 0 Movement Mouse Keybinds 0 Fullscreen 2 Font 32/SmallcapsGlow Map View 50x35 Zoom Use 0% Tactical HUD 0 Map Filters NONE Filters NONE Steam 1 RUN: 02ddc276-7b77-4bb6-ab9a-0e70164b17ca